bitfinex-derivatives/quotes_BNBF0:USTF0_20250507
["timestamp","ask_amount","ask_price","bid_price","bid_amount"]
[1746659138611,1.00301109,602.19,601.31,1.4092295]
[1746659138908,1.00301109,602.18,601.31,1.4092295]
[1746659139613,1.00301109,602.17,601.31,1.4092295]
[1746659140112,1.00301109,602.16,601.31,1.4092295]
[1746659140813,1.00301109,602.15,601.31,1.4092295]
[1746659141413,1.00301109,602.14,601.31,1.4092295]
[1746659142113,1.00301109,602.13,601.31,1.4092295]
[1746659142314,1.00301109,602.12,601.31,1.4092295]
[1746659142712,0.28912179,602.47,601.31,1.4092295]
[1746659142713,1.00301109,602.11,601.31,1.4092295]
[1746659144215,1.00301109,602.1,601.31,1.4092295]
[1746659144915,1.00301109,602.09,601.31,1.4092295]
[1746659145516,0.28912179,602.47,601.31,1.4092295]
[1746659146117,1.00273374,602.46,601.31,1.4092295]
[1746659146416,1.00273374,602.46,601.31,2.4752295]
[1746659146617,1.00273374,602.45,601.31,2.4752295]
[1746659146917,1.00273374,602.44,601.31,2.4752295]
[1746659147315,1.00273374,602.43,601.31,2.4752295]
[1746659148017,1.00273374,602.42,601.31,2.4752295]
[1746659148613,1.00273374,602.41,601.31,2.4752295]
[1746659149413,0.28912179,602.47,601.31,2.4752295]
[1746659149414,1.00273374,602.4,601.31,2.4752295]
[1746659150118,1.00273374,602.39,601.31,2.4752295]
[1746659150617,1.00273374,602.38,601.31,2.4752295]
[1746659150818,1.00273374,602.38,601.31,3.4792295]
[1746659151016,1.00273374,602.37,601.31,3.4792295]
[1746659151513,1.00273374,602.36,601.31,3.4792295]
[1746659151918,1.00273374,602.35,601.31,3.4792295]
[1746659152619,1.00273374,602.34,601.31,3.4792295]
[1746659152814,1.00273374,602.33,601.31,3.4792295]
[1746659153519,1.00273374,602.32,601.31,3.4792295]
[1746659154220,1.00273374,602.31,601.31,3.4792295]
[1746659154817,1.00273374,602.3,601.31,3.4792295]
[1746659155620,1.00273374,602.29,601.31,3.4792295]
[1746659156522,1.00273374,602.28,601.31,3.4792295]
[1746659157120,1.00273374,602.27,601.31,3.4792295]
[1746659157615,1.00273374,602.26,601.31,3.4792295]
[1746659158722,1.00273374,602.25,601.31,3.4792295]
[1746659159222,1.00273374,602.24,601.31,3.4792295]
[1746659159822,1.00273374,602.23,601.31,3.4792295]
[1746659160018,1.00273374,602.22,601.31,3.4792295]
[1746659160423,1.00273374,602.21,601.31,3.4792295]
[1746659161023,1.00273374,602.2,601.31,3.4792295]
[1746659161620,1.00273374,602.19,601.31,3.4792295]
[1746659162320,1.00273374,602.18,601.31,3.4792295]
[1746659162825,1.00273374,602.17,601.31,3.4792295]
[1746659163328,1.00273374,602.16,601.31,3.4792295]
[1746659163829,1.00273374,602.15,601.31,3.4792295]
[1746659164825,1.00273374,602.14,601.31,3.4792295]
[1746659165330,1.00273374,602.13,601.31,3.4792295]
[1746659165530,1.00273374,602.12,601.31,3.4792295]
[1746659165932,1.00273374,602.11,601.31,3.4792295]
[1746659167033,1.00273374,602.1,601.31,3.4792295]
[1746659167533,1.00273374,602.09,601.31,3.4792295]
[1746659168234,0.289129,602.47,601.31,3.4792295]
[1746659168734,1.00233107,602.46,601.31,3.4792295]
[1746659169130,1.00233107,602.45,601.31,3.4792295]
[1746659169634,1.00233107,602.44,601.31,3.4792295]
[1746659170634,1.00233107,602.43,601.31,3.4792295]
[1746659170934,1.00233107,602.42,601.31,4.53416202]
[1746659171435,1.00233107,602.41,601.31,4.53416202]
[1746659172035,1.00233107,602.4,601.31,4.53416202]
[1746659172736,1.00233107,602.39,601.31,4.53416202]
[1746659173036,1.00233107,602.38,601.31,4.53416202]
[1746659173338,1.00233107,602.37,601.33,1.05493252]
[1746659173535,1.00233107,602.37,601.35,0.33258501]
[1746659173734,1.00233107,602.36,601.35,0.33258501]
[1746659173936,1.00233107,602.35,601.35,0.33258501]
[1746659174237,1.00233107,602.34,601.35,0.33258501]
[1746659174636,1.00233107,602.33,601.35,0.33258501]
[1746659174837,1.00233107,602.32,601.35,1.38751753]
[1746659175337,1.00233107,602.31,601.35,1.38751753]
[1746659175537,1.00233107,602.3,601.35,1.38751753]
[1746659176037,1.00233107,602.3,601.36,1.108]
[1746659176239,1.00233107,602.3,601.38,0.33256842]
[1746659176536,1.00233107,602.29,601.38,0.33256842]
[1746659176836,1.00233107,602.28,601.38,0.33256842]
[1746659177438,1.00233107,602.27,601.38,0.33256842]
[1746659177940,1.00233107,602.26,601.38,0.33256842]
[1746659178540,1.00233107,602.25,601.38,0.33256842]
[1746659179335,1.00233107,602.24,601.38,0.33256842]
[1746659180240,1.00233107,602.23,601.38,0.33256842]
[1746659181037,1.00233107,602.22,601.38,0.33256842]
[1746659181538,1.00233107,602.21,601.38,0.33256842]
[1746659181743,1.00233107,602.21,601.39,0.835]
[1746659181943,1.00233107,602.2,601.41,0.33255183]
[1746659182541,1.00233107,602.19,601.41,0.33255183]
[1746659182843,1.00233107,602.18,601.41,0.33255183]
[1746659183343,1.00233107,602.17,601.41,0.33255183]
[1746659183838,1.00233107,602.16,601.41,0.33255183]
[1746659184343,1.00233107,602.15,601.41,0.33255183]
[1746659184938,1.00233107,602.14,601.41,0.33255183]
[1746659185442,1.00233107,602.13,601.41,0.33255183]
[1746659185742,1.00233107,602.12,601.41,0.33255183]
[1746659186440,1.00233107,602.11,601.41,0.33255183]
[1746659186944,1.00233107,602.1,601.41,0.33255183]
[1746659187845,1.00233107,602.09,601.41,0.33255183]
[1746659188439,1.00233107,602.08,601.41,0.33255183]
[1746659188641,1.00233107,602.07,601.41,0.33255183]
[1746659189450,1.00233107,602.06,601.41,0.33255183]
[1746659189952,1.00233107,602.05,601.41,0.33255183]
[1746659190351,1.00233107,602.04,601.41,0.33255183]
[1746659190754,1.00233107,602.03,601.41,0.33255183]
[1746659191155,1.00233107,602.02,601.41,0.33255183]
[1746659191450,0.289129,602.47,601.41,0.33255183]
[1746659191854,1.00590955,602.46,601.41,0.33255183]
[1746659192050,1.00590955,602.46,601.41,1.37755183]
[1746659192249,1.00590955,602.45,601.41,1.37755183]
[1746659192849,1.00590955,602.44,601.41,1.37755183]
[1746659193553,1.00590955,602.43,601.41,1.37755183]
[1746659194050,1.00590955,602.42,601.41,1.37755183]
[1746659194256,1.00590955,602.41,601.41,1.37755183]
[1746659194854,1.00590955,602.4,601.41,1.37755183]
[1746659195350,1.00590955,602.39,601.41,1.37755183]
[1746659195952,1.00590955,602.38,601.41,1.37755183]
[1746659196256,1.00590955,602.38,601.41,2.29555183]
[1746659196550,1.00590955,602.37,601.41,2.29555183]
[1746659197050,1.00590955,602.36,601.41,2.29555183]
[1746659197254,1.00590955,602.35,601.41,2.29555183]
[1746659198355,1.00590955,602.34,601.41,2.29555183]
[1746659198957,1.00590955,602.33,601.41,2.29555183]
[1746659199356,1.00590955,602.32,601.41,2.29555183]
[1746659200349,1.00590955,602.31,601.41,2.29555183]
[1746659200650,1.00590955,602.3,601.41,2.29555183]
[1746659201055,1.00590955,602.29,601.41,2.29555183]
[1746659201355,1.00590955,602.28,601.41,2.29555183]
[1746659201550,1.00590955,602.27,601.41,2.29555183]
[1746659201751,1.00590955,602.26,601.41,2.29555183]
[1746659202357,1.00590955,602.25,601.41,2.29555183]
[1746659202652,1.00590955,602.24,601.41,2.29555183]
[1746659203257,1.00590955,602.23,601.41,2.29555183]
[1746659203458,1.00590955,602.22,601.41,2.29555183]
[1746659203657,1.00590955,602.21,601.41,2.29555183]
[1746659205561,1.00590955,602.2,601.41,2.29555183]
[1746659206060,1.00590955,602.19,601.41,2.29555183]
[1746659206257,0.28910618,602.47,601.41,2.29555183]
[1746659206258,1.00590955,602.18,601.41,2.29555183]
[1746659206760,1.00590955,602.17,601.41,2.29555183]
[1746659207157,1.00590955,602.16,601.41,2.29555183]
[1746659207760,1.00590955,602.15,601.41,2.29555183]
[1746659208062,1.00590955,602.14,601.41,2.29555183]
[1746659208661,1.00590955,602.13,601.41,2.29555183]
[1746659209163,1.00590955,602.12,601.41,2.29555183]
[1746659209363,1.00590955,602.11,601.41,2.29555183]
[1746659209864,1.00590955,602.1,601.41,2.29555183]
[1746659210165,1.00590955,602.1,601.41,3.44155183]
[1746659210363,1.00590955,602.09,601.41,3.44155183]
[1746659210866,1.00590955,602.09,601.41,4.27355183]
[1746659211064,1.00590955,602.08,601.41,4.27355183]
[1746659211362,1.00590955,602.07,601.41,4.27355183]
[1746659211764,1.00590955,602.06,601.41,4.27355183]
[1746659212663,1.00590955,602.05,601.41,4.27355183]
[1746659212872,1.00590955,602.04,601.41,4.27355183]
[1746659213168,1.00590955,602.03,601.41,4.27355183]
[1746659213768,0.28912299,602.47,601.41,4.27355183]
[1746659214571,1.00698072,602.46,601.41,4.27355183]
[1746659214969,1.00698072,602.45,601.41,4.27355183]
[1746659215565,1.00698072,602.44,601.41,4.27355183]
[1746659216168,1.00698072,602.43,601.41,4.27355183]
[1746659216570,1.00698072,602.42,601.41,4.27355183]
[1746659216868,1.00698072,602.41,601.41,4.27355183]
[1746659217065,1.00698072,602.4,601.41,4.27355183]
[1746659217771,1.00698072,602.39,601.41,4.27355183]
[1746659218271,1.00698072,602.38,601.41,4.27355183]
[1746659218671,1.00698072,602.37,601.41,4.27355183]
[1746659219374,1.00698072,602.36,601.41,4.27355183]
[1746659219673,1.00698072,602.35,601.41,4.27355183]
[1746659220274,1.00698072,602.34,601.41,4.27355183]
[1746659220669,1.00698072,602.33,601.41,4.27355183]
[1746659221276,1.00698072,602.32,601.41,4.27355183]
[1746659221575,1.00698072,602.31,601.41,4.27355183]
[1746659222376,1.00698072,602.3,601.41,4.27355183]
[1746659222873,1.00698072,602.29,601.41,4.27355183]
[1746659223280,1.00698072,602.28,601.41,4.27355183]
[1746659223777,1.00698072,602.27,601.41,4.27355183]
[1746659224273,1.00698072,602.26,601.41,4.27355183]
[1746659224779,1.00698072,602.25,601.41,4.27355183]
[1746659225180,1.00698072,602.24,601.41,4.27355183]
[1746659225579,1.00698072,602.23,601.41,4.27355183]
[1746659225875,1.00698072,602.22,601.41,4.27355183]
[1746659226176,1.00698072,602.21,601.41,4.27355183]
[1746659226977,1.00698072,602.2,601.41,4.27355183]
[1746659227383,1.00698072,602.19,601.41,4.27355183]
[1746659227783,1.00698072,602.18,601.41,4.27355183]
[1746659228580,1.00698072,602.17,601.41,4.27355183]
[1746659229083,1.00698072,602.16,601.41,4.27355183]
[1746659229779,1.00698072,602.15,601.41,4.27355183]
[1746659230684,1.00698072,602.14,601.41,4.27355183]
[1746659231084,1.00698072,602.13,601.41,4.27355183]
[1746659231584,0.28910738,602.49,601.41,4.27355183]
[1746659231585,1.00698072,602.12,601.41,4.27355183]
[1746659231985,1.00698072,602.11,601.41,4.27355183]
[1746659232587,0.28910738,602.49,601.41,4.27355183]
[1746659232588,1.00698072,602.1,601.41,4.27355183]
[1746659232986,1.00698072,602.09,601.41,4.27355183]
[1746659233286,1.00698072,602.08,601.41,4.27355183]
[1746659233681,1.00698072,602.07,601.41,4.27355183]
[1746659234787,0.28911339,602.49,601.41,4.27355183]
[1746659235087,1.00391798,602.48,601.41,4.27355183]
[1746659236188,0.28911339,602.49,601.41,4.27355183]
[1746659236189,1.00391798,602.47,601.41,4.27355183]
[1746659236585,1.00391798,602.46,601.41,4.27355183]
[1746659236889,1.00391798,602.45,601.41,4.27355183]
[1746659237386,1.00391798,602.44,601.41,4.27355183]
[1746659237590,1.00391798,602.43,601.41,4.27355183]
[1746659237791,1.00391798,602.42,601.41,4.27355183]
[1746659238490,1.00391798,602.41,601.41,4.27355183]
[1746659238991,1.00391798,602.4,601.41,4.27355183]
[1746659239294,1.29301095,602.4,601.41,4.27355183]
[1746659239492,1.00391798,602.39,601.41,4.27355183]
[1746659239992,1.00391798,602.38,601.41,4.27355183]
[1746659240391,1.00391798,602.37,601.41,4.27355183]
[1746659240989,1.00391798,602.36,601.41,4.27355183]
[1746659241795,1.00391798,602.35,601.41,4.27355183]
[1746659242294,1.00391798,602.34,601.41,4.27355183]
[1746659242795,1.00391798,602.33,601.41,4.27355183]
[1746659243293,1.00391798,602.32,601.41,4.27355183]
[1746659243693,1.00391798,602.31,601.41,4.27355183]
[1746659243994,1.00391798,602.3,601.41,4.27355183]
[1746659244194,1.00391798,602.29,601.41,4.27355183]
[1746659244593,1.00391798,602.28,601.41,4.27355183]
[1746659244893,1.00391798,602.27,601.41,4.27355183]
[1746659245094,1.00391798,602.26,601.41,4.27355183]
[1746659245394,1.00391798,602.25,601.41,4.27355183]
[1746659245895,1.00391798,602.24,601.41,4.27355183]
[1746659246094,1.00391798,602.23,601.41,4.27355183]
[1746659246597,1.00391798,602.22,601.41,4.27355183]
[1746659246797,1.00391798,602.21,601.41,4.27355183]
[1746659246992,1.00391798,602.2,601.41,4.27355183]
[1746659247190,1.00391798,602.19,601.41,4.27355183]
[1746659247795,1.00391798,602.18,601.41,4.27355183]
[1746659247995,1.00391798,602.17,601.41,4.27355183]
[1746659248591,1.00391798,602.16,601.41,4.27355183]
[1746659248794,1.00391798,602.15,601.41,4.27355183]
[1746659249198,1.00391798,602.14,601.41,4.27355183]
[1746659250000,1.00391798,602.13,601.41,4.27355183]
[1746659250401,1.00391798,602.12,601.41,4.27355183]
[1746659251199,1.00391798,602.11,601.41,4.27355183]
[1746659251501,1.00391798,602.1,601.41,4.27355183]
[1746659251700,1.00391798,602.09,601.41,4.27355183]
[1746659252003,1.00391798,602.08,601.41,4.27355183]
[1746659252903,1.00391798,602.07,601.41,4.27355183]
[1746659253505,1.00391798,602.06,601.41,4.27355183]
[1746659254104,1.00391798,602.05,601.41,4.27355183]
[1746659254605,1.00391798,602.04,601.41,4.27355183]
[1746659255105,1.00391798,602.03,601.41,4.27355183]
[1746659255404,0.289135,602.39,601.41,4.27355183]
[1746659256305,1.00344218,602.38,601.41,4.27355183]
[1746659256907,1.00344218,602.37,601.41,4.27355183]
[1746659257106,1.00344218,602.36,601.41,4.27355183]
[1746659257501,1.00344218,602.35,601.41,4.27355183]
[1746659258206,1.00344218,602.34,601.41,4.27355183]
[1746659258703,1.00344218,602.33,601.41,4.27355183]
[1746659259101,1.00344218,602.32,601.41,4.27355183]
[1746659259408,1.25857739,602.31,601.41,4.27355183]
[1746659259702,2.26201957,602.3,601.41,4.27355183]
[1746659259905,1.25857739,602.29,601.41,4.27355183]
[1746659260107,1.25857739,602.28,601.41,4.27355183]
[1746659260308,2.26201957,602.27,601.41,4.27355183]
[1746659260508,1.25857739,602.26,601.41,4.27355183]
[1746659260707,1.25857739,602.25,601.41,4.27355183]
[1746659260908,2.26201957,602.24,601.41,4.27355183]
[1746659261204,1.25857739,602.23,601.41,4.27355183]
[1746659261408,1.25857739,602.22,601.41,4.27355183]
[1746659261609,1.25857739,602.21,601.41,4.27355183]
[1746659261808,2.26201957,602.2,601.41,4.27355183]
[1746659262011,1.25857739,602.19,601.41,4.27355183]
[1746659262310,2.26201957,602.18,601.41,4.27355183]
[1746659262512,1.25857739,602.17,601.41,4.27355183]
[1746659262811,2.26201957,602.16,601.41,4.27355183]
[1746659263011,1.25857739,602.15,601.41,4.27355183]
[1746659263209,1.25857739,602.14,601.41,4.27355183]
[1746659263408,2.26201957,602.13,601.41,4.27355183]
[1746659263614,1.25857739,602.12,601.41,4.27355183]
[1746659263815,2.26201957,602.11,601.41,4.27355183]
[1746659264009,1.25857739,602.1,601.41,4.27355183]
[1746659264212,1.00344218,602.11,601.41,4.27355183]
[1746659264409,1.25966361,602.1,601.41,4.27355183]
[1746659264612,1.00344218,602.1,601.41,4.27355183]
[1746659264814,1.00344218,602.09,601.41,4.27355183]
[1746659265214,0.28912179,602.39,601.41,4.27355183]
[1746659265215,1.00344218,602.08,601.41,4.27355183]
[1746659266009,1.00344218,602.07,601.41,4.27355183]
[1746659266516,1.00344218,602.06,601.41,4.27355183]
[1746659266816,1.00344218,602.05,601.41,4.27355183]
[1746659267015,1.00344218,602.04,601.41,4.27355183]
[1746659267312,0.2891326,602.39,601.41,4.27355183]
[1746659267514,1.25727453,602.38,601.41,4.27355183]
[1746659267715,1.25727453,602.37,601.41,4.27355183]
[1746659267916,1.25727453,602.36,601.41,4.27355183]
[1746659268211,2.26004601,602.35,601.41,4.27355183]
[1746659268415,2.26004601,602.34,601.41,4.27355183]
[1746659268616,1.25727453,602.33,601.41,4.27355183]
[1746659268915,1.25727453,602.32,601.41,4.27355183]
[1746659269110,2.26004601,602.31,601.41,4.27355183]
[1746659269314,1.25727453,602.3,601.41,4.27355183]
[1746659269516,1.25727453,602.29,601.41,4.27355183]
[1746659269810,2.26004601,602.28,601.41,4.27355183]
[1746659270014,1.25727453,602.27,601.41,4.27355183]
[1746659270216,1.25727453,602.26,601.41,4.27355183]
[1746659270409,2.26004601,602.25,601.41,4.27355183]
[1746659270708,1.25727453,602.24,601.41,4.27355183]
[1746659270913,1.25727453,602.23,601.41,4.27355183]
[1746659271214,1.25727453,602.22,601.41,4.27355183]
[1746659271417,1.25727453,602.21,601.41,4.27355183]
[1746659271715,2.26004601,602.2,601.41,4.27355183]
[1746659271913,1.25727453,602.19,601.41,4.27355183]
[1746659272111,1.25727453,602.18,601.41,4.27355183]
[1746659272315,2.26004601,602.17,601.41,4.27355183]
[1746659272615,1.25727453,602.16,601.41,4.27355183]
[1746659272917,1.00277148,602.15,601.41,4.27355183]
[1746659273117,2.25930094,602.14,601.41,4.27355183]
[1746659273317,1.25652946,602.13,601.41,4.27355183]
[1746659273517,1.25652946,602.12,601.41,4.27355183]
[1746659273717,2.25930094,602.11,601.41,4.27355183]
[1746659273918,2.25930094,602.1,601.41,4.27355183]
[1746659274111,1.25652946,602.09,601.41,4.27355183]
[1746659274312,1.00277148,602.1,601.41,4.27355183]
[1746659274515,1.25655058,602.09,601.41,4.27355183]
[1746659274716,1.00277148,602.1,601.41,4.27355183]
[1746659274918,2.25932206,602.09,601.41,4.27355183]
[1746659275117,1.00277148,602.09,601.41,4.27355183]
[1746659275315,1.00277148,602.08,601.41,4.27355183]
[1746659276022,1.00277148,602.07,601.41,4.27355183]
[1746659276421,1.00277148,602.06,601.41,4.27355183]
[1746659277023,1.25761705,602.05,601.41,4.27355183]
[1746659277222,1.00277148,602.05,601.41,4.27355183]
[1746659277522,1.25783084,602.04,601.41,4.27355183]
[1746659277722,1.00277148,602.05,601.41,4.27355183]
[1746659277919,1.00277148,602.03,601.41,4.27355183]
[1746659278421,1.00277148,602.02,601.41,4.27355183]
[1746659278822,1.00277148,602.01,601.41,4.27355183]
[1746659279122,1.00277148,602.0,601.41,4.27355183]
[1746659279718,1.00277148,601.99,601.41,4.27355183]
[1746659280320,1.00277148,601.98,601.41,4.27355183]
[1746659280518,0.28914341,602.37,601.41,4.27355183]
[1746659280715,1.25772295,602.36,601.41,4.27355183]
[1746659280917,2.26081681,602.35,601.41,4.27355183]
[1746659281119,1.25772295,602.34,601.41,4.27355183]
[1746659281321,1.25772295,602.33,601.41,4.27355183]
[1746659281617,1.25772295,602.32,601.41,4.27355183]
[1746659281822,2.26081681,602.31,601.41,4.27355183]
[1746659282019,2.26081681,602.3,601.41,4.27355183]
[1746659282224,1.25772295,602.29,601.41,4.27355183]
[1746659282525,2.26081681,602.28,601.41,4.27355183]
[1746659282724,1.25772295,602.27,601.41,4.27355183]
[1746659282924,1.25772295,602.26,601.41,4.27355183]
[1746659283126,2.26081681,602.25,601.41,4.27355183]
[1746659283422,1.25772295,602.24,601.41,4.27355183]
[1746659283621,1.25772295,602.23,601.41,4.27355183]
[1746659283824,1.25772295,602.22,601.41,4.27355183]
[1746659284020,1.25772295,602.21,601.41,4.27355183]
[1746659284225,1.25772295,602.2,601.41,4.27355183]
[1746659284425,2.26081681,602.19,601.41,4.27355183]
[1746659284627,1.25772295,602.18,601.41,4.27355183]
[1746659284827,1.25772295,602.17,601.41,4.27355183]
[1746659285024,1.25772295,602.16,601.41,4.27355183]
[1746659285228,1.25772295,602.15,601.41,4.27355183]
[1746659285528,1.25772295,602.14,601.41,4.27355183]
[1746659285827,2.26081681,602.13,601.41,4.27355183]
[1746659286027,1.25772295,602.12,601.41,4.27355183]
[1746659286228,1.25772295,602.11,601.41,4.27355183]
[1746659286426,2.26081681,602.1,601.41,4.27355183]
[1746659286625,1.25772295,602.09,601.41,4.27355183]
[1746659286824,2.26081681,602.08,601.41,4.27355183]
[1746659287026,1.25772295,602.07,601.41,4.27355183]
[1746659287228,1.25772295,602.06,601.41,4.27355183]
[1746659287429,1.00309386,602.05,601.41,4.27355183]
[1746659287831,1.00309386,602.04,601.41,4.27355183]
[1746659288325,1.00309386,602.03,601.41,4.27355183]
[1746659289331,1.00309386,602.02,601.41,4.27355183]
[1746659290032,1.00309386,602.01,601.41,4.27355183]
[1746659290532,1.00309386,602.0,601.41,4.27355183]
[1746659291028,0.28914461,602.37,601.41,4.27355183]
[1746659291233,1.25817985,602.36,601.41,4.27355183]
[1746659291427,1.25817985,602.35,601.41,4.27355183]
[1746659291631,1.25817985,602.34,601.41,4.27355183]
[1746659291833,1.25817985,602.33,601.41,4.27355183]
[1746659292033,2.26122403,602.32,601.41,4.27355183]
[1746659292229,1.25817985,602.31,601.41,4.27355183]
[1746659292430,1.25817985,602.3,601.41,4.27355183]
[1746659292727,1.25817985,602.29,601.41,4.27355183]
[1746659292928,2.26122403,602.28,601.41,4.27355183]
[1746659293233,2.26122403,602.27,601.41,4.27355183]
[1746659293533,1.25817985,602.26,601.41,4.27355183]
[1746659293732,1.25817985,602.25,601.41,4.27355183]
[1746659293933,1.25817985,602.24,601.41,4.27355183]
[1746659294235,1.25817985,602.23,601.41,4.27355183]
[1746659294432,2.26122403,602.22,601.41,4.27355183]
[1746659294730,1.25817985,602.21,601.41,4.27355183]
[1746659294934,1.25817985,602.2,601.41,4.27355183]
[1746659295129,2.26122403,602.19,601.41,4.27355183]
[1746659295333,1.25817985,602.18,601.41,4.27355183]
[1746659295533,2.26122403,602.17,601.41,4.27355183]
[1746659295734,2.26122403,602.16,601.41,4.27355183]
[1746659295927,1.25817985,602.15,601.41,4.27355183]
[1746659296132,2.26122403,602.14,601.41,4.27355183]
[1746659296436,2.26122403,602.13,601.41,4.27355183]
[1746659296729,2.26122403,602.12,601.41,4.27355183]
[1746659296935,1.25817985,602.11,601.41,4.27355183]
[1746659297138,1.25817985,602.1,601.41,4.27355183]
[1746659297334,0.2891278,602.37,601.41,4.27355183]
[1746659297335,2.26122403,602.09,601.41,4.27355183]
[1746659297537,1.25817985,602.08,601.41,4.27355183]
[1746659297835,2.26179072,602.07,601.41,4.27355183]
[1746659298035,1.25817985,602.06,601.41,4.27355183]
[1746659298237,1.00361087,602.07,601.41,4.27355183]
[1746659298536,1.00361087,602.05,601.41,4.27355183]
[1746659298834,1.00361087,602.04,601.41,4.27355183]
[1746659299337,1.27057298,603.14,601.41,4.27355183]
[1746659299338,1.00361087,602.03,601.41,4.27355183]
[1746659299735,0.28914101,602.37,601.41,4.27355183]
[1746659301339,0.99830108,602.36,601.41,4.27355183]
[1746659301536,0.99830108,602.35,601.41,4.27355183]
[1746659302036,0.99830108,602.34,601.41,4.27355183]
[1746659302538,0.99830108,602.33,601.41,4.27355183]
[1746659302932,0.99830108,602.32,601.41,4.27355183]
[1746659303440,0.99830108,602.31,601.41,4.27355183]
[1746659303937,0.28910498,602.37,601.41,4.27355183]
[1746659304838,1.27057298,603.44,601.41,4.27355183]
[1746659305138,0.28898374,602.43,601.41,4.27355183]
[1746659305439,0.3050635,603.23,601.41,4.27355183]
[1746659305638,1.27057298,603.44,601.41,4.27355183]
[1746659305839,0.28898014,602.45,601.41,4.27355183]
[1746659306035,1.27057298,603.44,601.41,4.27355183]
[1746659306236,0.28897894,602.45,601.41,4.27355183]
[1746659306533,1.27057298,603.52,601.41,4.27355183]
[1746659306839,0.28897894,602.45,601.41,4.27355183]
[1746659307138,1.27057298,603.52,601.41,4.27355183]
[1746659307340,0.28898014,602.45,601.41,4.27355183]
[1746659307736,1.27057298,603.52,601.41,4.27355183]
[1746659307942,0.28897894,602.45,601.41,4.27355183]
[1746659308348,1.27057298,603.4,601.41,4.27355183]
[1746659308538,0.28897894,602.45,601.41,4.27355183]
[1746659308742,0.30504484,603.23,601.41,4.27355183]
[1746659308941,1.27057298,603.4,601.41,4.27355183]
[1746659309142,0.28898014,602.45,601.41,4.27355183]
[1746659309343,0.30504528,603.22,601.41,4.27355183]
[1746659309544,0.33156498,603.2,601.41,4.27355183]
[1746659309845,0.28898134,602.45,601.41,4.27355183]
[1746659310045,0.30504745,603.19,601.41,4.27355183]
[1746659310243,0.59400719,603.19,601.41,4.27355183]
[1746659310640,0.30504745,603.18,601.41,4.27355183]
[1746659310844,0.33158697,603.16,601.41,4.27355183]
[1746659311446,0.30504745,603.15,601.41,4.27355183]
[1746659313546,0.33159797,603.14,601.41,4.27355183]
[1746659314246,0.30504745,603.13,601.41,4.27355183]
[1746659314449,0.33160896,603.12,601.41,4.27355183]
[1746659314947,0.30504745,603.11,601.41,4.27355183]
[1746659315147,0.33161996,603.1,601.41,4.27355183]
[1746659315542,0.30504745,603.09,601.41,4.27355183]
[1746659315747,0.33163096,603.08,601.41,4.27355183]
[1746659316141,0.30504745,603.07,601.41,4.27355183]
[1746659317147,0.28898614,603.06,601.41,4.27355183]
[1746659317442,0.30504745,603.05,601.41,4.27355183]
[1746659319448,0.28898614,603.06,601.41,4.27355183]
[1746659319648,0.30502136,603.05,601.41,4.27355183]
[1746659319845,0.33165295,603.04,601.41,4.27355183]
[1746659320043,0.30502136,603.03,601.41,4.27355183]
[1746659320448,0.33166395,603.02,601.41,4.27355183]
[1746659320751,0.30502136,603.01,601.41,4.27355183]
[1746659320943,0.63669081,603.01,601.41,4.27355183]
[1746659321246,0.30502136,603.0,601.41,4.27355183]
[1746659326052,0.28899454,602.99,601.41,4.27355183]
[1746659326252,0.30502136,602.98,601.41,4.27355183]
[1746659326451,0.28899454,602.99,601.41,4.27355183]
[1746659326753,0.30502027,602.98,601.41,4.27355183]
[1746659329048,0.30502027,603.0,601.41,4.27355183]
[1746659329355,0.28899454,602.97,601.41,4.27355183]
[1746659329555,0.30502027,602.96,601.41,4.27355183]
[1746659335361,0.28899454,602.97,601.41,4.27355183]
[1746659335561,0.30501782,602.96,601.41,4.27355183]
[1746659338162,0.30501782,603.0,601.41,4.27355183]
[1746659338366,0.28898734,602.95,601.41,4.27355183]
[1746659338564,0.30501782,602.94,601.41,4.27355183]
[1746659338864,0.28898734,602.95,601.41,4.27355183]
[1746659339064,0.30501599,602.93,601.41,4.27355183]
[1746659339266,0.30501599,602.92,601.41,4.27355183]
[1746659339660,0.30501599,602.91,601.41,4.27355183]
[1746659339861,0.30501599,602.94,601.41,4.27355183]
[1746659341167,0.28899454,602.93,601.41,4.27355183]
[1746659341466,0.30501599,602.92,601.41,4.27355183]
[1746659342166,0.28899454,602.93,601.41,4.27355183]
[1746659343869,0.33166945,603.01,601.41,4.27355183]
[1746659344069,0.30501011,603.0,601.41,4.27355183]
[1746659344373,0.59391228,603.0,601.41,4.27355183]
[1746659344570,0.30501011,602.99,601.41,4.27355183]
[1746659346768,0.28890217,603.0,601.41,4.27355183]
[1746659346968,0.30500753,602.99,601.41,4.27355183]
[1746659347174,0.28898734,602.99,601.41,4.27355183]
[1746659347375,0.30500753,602.98,601.41,4.27355183]
[1746659348474,0.28898734,602.99,601.41,4.27355183]
[1746659348673,0.30499727,602.98,601.41,4.27355183]
[1746659350073,0.30499727,603.0,601.41,4.27355183]
[1746659350275,0.28898734,602.97,601.41,4.27355183]
[1746659350475,0.30499727,602.96,601.41,4.27355183]
[1746659350775,0.30499682,602.95,601.41,4.27355183]
[1746659351073,0.30499682,602.96,601.41,4.27355183]
[1746659351369,0.30499682,602.95,601.41,4.27355183]
[1746659351574,0.30499682,602.96,601.41,4.27355183]